bitfinex/quotes_ETHUSD_20250115
["timestamp","ask_amount","ask_price","bid_price","bid_amount"]
[1736971321783,6.66,3444.0,3443.9,35.51104151]
[1736971322755,9.5636,3444.0,3443.9,35.51104151]
[1736971323087,10.29544741,3444.0,3443.9,35.51104151]
[1736971323289,6.66,3444.0,3443.9,35.51104151]
[1736971324263,7.77,3444.0,3443.9,35.51104151]
[1736971326388,7.77,3444.0,3443.9,35.76104151]
[1736971326556,8.88,3444.0,3443.9,35.76104151]
[1736971329091,9.99,3444.0,3443.9,35.76104151]
[1736971331199,12.8936,3444.0,3443.9,35.51104151]
[1736971331401,16.742638,3444.0,3443.9,35.51104151]
[1736971331711,16.961638,3444.0,3443.9,35.51104151]
[1736971332098,14.058038,3444.0,3443.9,35.51104151]
[1736971332397,11.319,3444.0,3443.9,35.51104151]
[1736971333390,14.2226,3444.0,3443.9,35.51104151]
[1736971333797,15.3326,3444.0,3443.9,35.51104151]
[1736971335179,15.2171791,3444.0,3443.9,35.51104151]
[1736971336275,13.2045791,3444.0,3443.9,35.76104151]
[1736971336881,13.2045791,3444.0,3443.9,35.51104151]
[1736971337166,16.1081791,3444.0,3443.9,35.51104151]
[1736971338006,16.3271791,3444.0,3443.9,35.51104151]
[1736971338810,17.4371791,3444.0,3443.9,35.51104151]
[1736971339400,19.0405791,3444.0,3443.9,35.51104151]
[1736971339607,22.01681387,3444.0,3443.9,35.51104151]
[1736971339978,22.56681387,3444.0,3443.9,35.51104151]
[1736971340522,22.56681387,3444.0,3443.9,35.26104151]
[1736971341190,23.67681387,3444.0,3443.9,35.26104151]
[1736971342516,24.26630258,3444.0,3443.9,0.14504151]
[1736971342816,24.04730258,3444.0,3443.9,0.14504151]
[1736971343120,24.25830258,3444.0,3443.9,0.14504151]
[1736971343500,24.25830258,3444.0,3443.9,35.14504151]
[1736971343702,25.36830258,3444.0,3443.9,35.14504151]
[1736971343904,4.50409,3443.3,3443.2,0.25]
[1736971344101,2.90452,3442.9,3442.8,0.25]
[1736971344313,3.11552,3442.9,3442.8,0.25]
[1736971344814,3.11552,3442.9,3442.8,35.25]
[1736971346096,4.22552,3442.9,3442.8,35.25]
[1736971346615,4.22552,3442.9,3442.8,35.0]
[1736971347788,4.22552,3442.9,3442.8,35.25]
[1736971348601,5.33552,3442.9,3442.8,35.25]
[1736971348920,5.33552,3442.9,3442.8,35.0]
[1736971349089,5.33552,3442.9,3442.8,35.25]
[1736971349716,5.33552,3442.9,3442.8,35.0]
[1736971350110,5.33552,3442.9,3442.8,35.25]
[1736971350325,5.33552,3442.9,3442.8,35.0]
[1736971350506,5.33552,3442.9,3442.8,35.25]
[1736971350887,5.33552,3442.9,3442.8,35.0]
[1736971351089,6.44552,3442.9,3442.8,35.25]
[1736971352702,6.44552,3442.9,3442.8,35.0]
[1736971353009,6.23452,3442.9,3442.8,35.25]
[1736971353238,3.33,3442.9,3442.8,35.5]
[1736971353538,4.44,3442.9,3442.8,42.1501]
[1736971355625,4.44,3442.9,3442.8,40.1501]
[1736971355804,5.55,3442.9,3442.8,40.1501]
[1736971356413,5.55,3442.9,3442.8,38.5]
[1736971356807,5.55,3442.9,3442.8,35.76038647]
[1736971357140,8.45452,3442.9,3442.8,35.76038647]
[1736971358218,9.56452,3442.9,3442.8,35.76038647]
[1736971358423,6.66,3442.9,3442.8,35.76038647]
[1736971359539,6.871,3442.9,3442.8,35.76038647]
[1736971361317,7.981,3442.9,3442.8,35.76038647]
[1736971363809,9.091,3442.9,3442.8,35.76038647]
[1736971364204,8.88,3442.9,3442.8,37.38808647]
[1736971364449,8.88,3442.9,3442.8,40.38808647]
[1736971366259,9.99,3442.9,3442.8,40.38808647]
[1736971368628,11.1,3442.9,3442.8,40.38808647]
[1736971369781,11.1,3442.9,3442.8,45.29269647]
[1736971370766,11.1,3442.9,3442.8,49.29269647]
[1736971371067,12.21,3442.9,3442.8,50.50818811]
[1736971371238,12.21,3442.9,3442.8,49.29269647]
[1736971373318,13.32,3442.9,3442.8,49.29269647]
[1736971376069,14.43,3442.9,3442.8,49.29269647]
[1736971377671,12.73538726,3442.9,3442.8,49.29269647]
[1736971378215,12.73538726,3442.9,3442.8,50.45422147]
[1736971378416,13.84538726,3442.9,3442.8,50.45422147]
[1736971378668,16.5345791,3444.0,3443.9,3.8199]
[1736971378818,16.5345791,3444.0,3443.9,7.0699]
[1736971379214,16.5345791,3444.0,3443.9,42.0699]
[1736971379518,16.5345791,3444.0,3443.9,42.33028647]
[1736971379711,16.5345791,3444.0,3443.9,40.33028647]
[1736971380054,16.5345791,3444.0,3443.9,38.76038647]
[1736971381251,17.6445791,3444.0,3443.9,38.76038647]
[1736971382255,17.6445791,3444.0,3443.9,35.76038647]
[1736971383431,24.70373212,3444.0,3443.9,35.26038647]
[1736971384656,24.70373212,3444.0,3443.9,35.0]
[1736971385640,23.2593791,3444.0,3443.9,35.25]
[1736971385948,21.4657791,3444.0,3443.9,35.25]
[1736971386143,21.4657791,3444.0,3443.9,35.5]
[1736971386470,19.8645791,3444.0,3443.9,35.5]
[1736971386766,19.8645791,3444.0,3443.9,35.75999671]
[1736971387866,22.7681791,3444.0,3443.9,35.50999671]
[1736971388043,27.40641387,3444.0,3443.9,35.25999671]
[1736971388364,28.51641387,3444.0,3443.9,35.25999671]
[1736971389534,28.51641387,3444.0,3443.9,35.0]
[1736971390669,29.62641387,3444.0,3443.9,35.0]
[1736971392773,29.82541387,3444.0,3443.9,35.0]
[1736971393134,31.50789095,3444.0,3443.9,35.0]
[1736971396347,32.61789095,3444.0,3443.9,35.0]
[1736971397469,32.04541387,3444.0,3443.9,35.0]
[1736971397903,29.0691791,3444.0,3443.9,35.0]
[1736971398210,24.3045791,3444.0,3443.9,35.0]
[1736971398748,25.4145791,3444.0,3443.9,35.0]
[1736971399057,28.3181791,3444.0,3443.9,35.0]
[1736971399284,28.8681791,3444.0,3443.9,35.0]
[1736971399666,25.9645791,3444.0,3443.9,35.0]
[1736971401395,29.9781791,3444.0,3443.9,35.0]
[1736971403796,31.0881791,3444.0,3443.9,35.0]
[1736971406158,32.1981791,3444.0,3443.9,35.0]
[1736971407564,28.7445791,3444.0,3443.9,35.0]
[1736971407779,28.7445791,3444.0,3443.9,41.5019]
[1736971407982,28.7445791,3444.0,3443.9,38.5019]
[1736971408200,28.7445791,3444.0,3443.9,36.5019]
[1736971408507,28.7445791,3444.0,3443.9,143.04938]
[1736971408508,27.02003771,3444.0,3443.9,143.04938]
[1736971408709,9.99,3444.3,3443.9,143.04938]
[1736971408919,2.90208,3445.8,3445.7,0.25]
[1736971409070,2.90208,3445.8,3444.0,3.055]
[1736971409071,4.43735,3445.6,3445.5,0.25]
[1736971409269,1.5351,3445.4,3444.9,0.25]
[1736971409497,2.90292,3444.8,3444.7,0.25]
[1736971409698,0.55,3444.8,3444.7,0.25]
[1736971409898,2.11223464,3445.6,3445.2,0.25]
[1736971410107,2.90233,3445.5,3445.2,0.5]
[1736971410269,2.9025,3445.3,3445.2,0.25]
[1736971410470,0.46596,3445.3,3445.0,0.25]
[1736971410694,0.222,3445.4,3445.2,35.0]
[1736971410897,4.43735,3445.6,3445.2,32.09742]
[1736971410898,2.9025,3445.3,3445.2,32.09742]
[1736971411213,3.45351,3444.1,3444.0,0.7741]
[1736971411417,3.67551,3444.1,3444.0,0.2741]
[1736971411708,3.67551,3444.1,3443.5,0.25]
[1736971411709,3.45393,3443.6,3443.5,0.25]
[1736971411911,3.45393,3443.6,3443.5,35.25]
[1736971412378,0.772,3443.6,3443.5,35.25]
[1736971412982,3.67593,3443.6,3443.5,35.25]
[1736971413712,1.882,3443.6,3443.5,35.25]
[1736971413873,1.11,3443.6,3443.5,35.25]
[1736971414614,1.66,3443.6,3443.5,35.25]
[1736971415075,1.882,3443.6,3443.5,35.25]
[1736971416077,2.992,3443.6,3443.5,35.25]
[1736971416410,2.442,3443.6,3443.5,35.25]
[1736971416611,2.992,3443.6,3443.5,35.25]
[1736971418289,2.22,3443.6,3443.5,35.25]
[1736971418495,3.552,3443.6,3443.5,35.25]
[1736971419025,3.33,3443.6,3443.5,35.25]
[1736971419229,3.33,3443.6,3443.5,37.25]
[1736971421395,4.44,3443.6,3443.5,37.25]
[1736971421597,4.44,3443.6,3443.5,35.25]
[1736971422115,4.99,3443.6,3443.5,35.25]
[1736971422333,8.57838,3443.6,3443.5,35.25]
[1736971423852,9.68838,3443.6,3443.5,35.25]
[1736971424129,9.00393,3443.6,3443.5,35.25]
[1736971424298,10.63643,3443.6,3443.5,35.25]
[1736971426106,11.74643,3443.6,3443.5,35.25]
[1736971426899,12.3314161,3443.6,3443.5,35.0]
[1736971427139,12.3314161,3443.6,3442.9,0.25]
[1736971427140,2.90444,3443.0,3442.9,0.25]
[1736971427333,3.45444,3443.0,3442.9,0.25]
[1736971427494,3.45444,3443.0,3442.6,0.5]
[1736971427695,0.55,3442.7,3442.6,0.5]
[1736971427995,3.45469,3442.7,3442.6,35.5]
[1736971428206,5.595909,3442.7,3442.6,35.0]
[1736971428407,6.705909,3442.7,3442.6,35.25]
[1736971428613,6.19719,3442.7,3442.6,35.25]
[1736971429417,1.882,3442.7,3442.6,35.5]
[1736971430754,2.992,3442.7,3442.6,35.5]
[1736971430911,3.57230256,3442.7,3442.6,35.5]
[1736971431120,6.47699256,3442.7,3442.6,35.5]
[1736971432859,2.22,3442.7,3442.6,35.5]
[1736971433228,3.88,3442.7,3442.6,35.5]
[1736971433957,3.33,3442.7,3442.6,37.5]
[1736971435735,4.99,3442.7,3442.6,35.5]
[1736971437540,7.89469,3442.7,3442.6,35.5]
[1736971438374,9.00469,3442.7,3442.6,35.5]
[1736971439550,9.00469,3442.7,3442.6,35.25]
[1736971439722,9.00469,3442.7,3442.6,35.5]
[1736971440352,11.490259,3442.7,3442.6,35.0]
[1736971440564,11.490259,3442.7,3442.6,35.25]
[1736971440779,12.600259,3442.7,3442.6,35.0]
[1736971441264,12.600259,3442.7,3442.6,35.25]
[1736971441876,12.600259,3442.7,3442.6,35.0]
[1736971442285,11.66759,3442.7,3442.6,35.25]
[1736971442426,6.66,3442.7,3442.6,35.5]
[1736971443368,7.77,3442.7,3442.6,35.5]
[1736971444154,8.32,3442.7,3442.6,35.5]
[1736971444851,12.77399,3442.7,3442.6,35.25]
[1736971445028,14.373339,3442.7,3442.6,35.0]
[1736971445643,15.483339,3442.7,3442.6,35.0]
[1736971446427,15.483339,3442.7,3442.0,0.25]
[1736971446428,2.9052,3442.1,3442.0,0.25]
[1736971446775,0.55,3442.0,3441.9,0.25]
[1736971446951,2.90505,3442.3,3442.1,0.25]
[1736971447152,1.5493,3442.5,3442.1,0.25]
[1736971447153,0.215,3442.2,3442.1,0.25]
[1736971447463,3.67011,3442.2,3442.1,35.25]
[1736971447632,5.21941,3442.2,3442.1,35.0]
[1736971448035,6.32941,3442.2,3442.1,35.0]
[1736971448558,9.32941,3442.2,3442.1,35.0]
[1736971448770,0.55,3442.1,3441.4,0.25]
[1736971449069,5.005,3441.5,3441.4,0.25]
[1736971449789,5.005,3441.5,3441.4,35.25]
[1736971450281,6.115,3441.5,3441.4,35.25]
[1736971450631,6.115,3441.5,3441.4,35.0]
[1736971450841,7.017051,3441.5,3441.4,35.0]
[1736971451070,10.017051,3441.5,3441.4,35.0]
[1736971451565,5.00509,3441.4,3441.3,1.57699951]
[1736971451893,5.00576,3440.6,3440.5,0.875]
[1736971452060,5.00576,3440.6,3440.5,1.125]
[1736971452264,5.22076,3440.6,3440.5,0.875]
[1736971452483,5.22076,3440.6,3440.5,35.875]
[1736971452690,6.33076,3440.6,3440.5,35.875]
[1736971453076,7.254462,3440.6,3440.5,35.625]
[1736971453279,7.254462,3440.6,3440.0,1.0174]
[1736971453280,2.90689,3440.1,3440.0,1.0174]
[1736971453461,5.00619,3440.1,3440.0,1.0174]
[1736971453961,2.90731,3439.6,3439.5,0.25]
[1736971454163,5.00661,3439.6,3439.5,0.25]
[1736971454365,2.0993,3439.6,3439.5,35.25]
[1736971454865,5.00661,3439.6,3439.5,35.25]
[1736971455284,1.66,3439.6,3439.5,35.25]
[1736971455495,1.876,3439.6,3439.5,35.25]
[1736971456262,1.11,3439.6,3439.5,35.25]
[1736971456595,1.11,3439.6,3439.5,37.25]
[1736971456986,1.11,3439.6,3439.5,43.15739]
[1736971457307,1.11,3439.6,3439.5,40.25]
[1736971457512,1.11,3439.6,3439.5,38.25]
[1736971457662,2.22,3439.6,3439.5,38.25]
[1736971458058,2.77,3439.6,3439.5,38.25]
[1736971458299,2.77,3439.6,3439.5,35.25]
[1736971460101,3.88,3439.6,3439.5,35.25]
[1736971461002,4.096,3439.6,3439.5,35.25]
[1736971461706,3.33,3439.6,3439.5,35.25]
[1736971461870,3.33,3439.6,3439.5,43.15739]
[1736971462405,4.44,3439.6,3439.5,38.25]
[1736971462985,4.44,3439.6,3439.5,40.25]
[1736971463188,4.99,3439.6,3439.5,38.25]
[1736971463383,4.99,3439.6,3439.5,35.25]
[1736971464714,6.1,3439.6,3439.5,35.25]
[1736971467122,7.21,3439.6,3439.5,35.25]
[1736971467812,6.66,3439.6,3439.5,35.25]
[1736971467998,6.66,3439.6,3439.5,43.15739]
[1736971468998,6.66,3439.6,3439.5,38.25]
[1736971469312,7.21,3439.6,3439.5,35.25]
[1736971469508,7.77,3439.6,3439.5,35.25]
[1736971470292,7.77,3439.6,3439.5,35.0]
[1736971470490,8.32,3439.6,3439.5,35.25]
[1736971471813,9.43,3439.6,3439.5,35.25]
[1736971472927,8.88,3439.6,3439.5,37.25]
[1736971473111,8.88,3439.6,3439.5,35.25]
[1736971473312,9.43,3439.6,3439.5,35.25]
[1736971474300,10.54,3439.6,3439.5,35.25]
[1736971475326,11.76626082,3439.6,3439.5,35.25]
[1736971475634,14.67357082,3439.6,3439.5,35.25]
[1736971475827,14.67357082,3439.6,3439.5,35.0]
[1736971476002,16.32417082,3439.6,3439.5,35.0]
[1736971476203,2.9079,3438.9,3438.6,0.5]
[1736971476410,2.90807,3438.7,3438.6,0.25]
[1736971476608,0.757,3438.7,3438.6,0.5]
[1736971477292,3.66507,3438.7,3438.6,35.25]
[1736971477607,3.66507,3438.7,3438.6,35.5]
[1736971477801,3.66507,3438.7,3438.6,35.25]
[1736971478001,3.66507,3438.7,3438.6,35.24994602]
[1736971478550,3.66507,3438.7,3438.6,35.0]
[1736971478848,2.90875,3437.9,3437.8,0.24994602]
[1736971479136,0.55,3437.9,3437.8,0.49994602]
[1736971479313,0.55,3437.9,3436.9,12.76]
[1736971479314,0.55,3437.8,3437.6,0.49994602]
[1736971479633,2.2006,3437.8,3437.6,0.49994602]
[1736971479840,5.641053,3437.8,3437.7,35.0]
[1736971481143,3.990453,3437.8,3437.7,35.0]
[1736971481355,5.641053,3437.8,3437.7,35.0]
[1736971481552,9.751053,3437.8,3437.7,35.0]
[1736971482447,9.751053,3437.8,3436.3,8.76]
[1736971482448,0.55,3437.4,3436.7,0.24994602]
[1736971482646,0.55,3436.8,3436.7,0.24994602]
[1736971482961,0.757,3436.8,3436.7,0.49994602]
[1736971483337,0.757,3436.8,3436.7,35.49994602]
[1736971484049,1.867,3436.8,3436.7,35.49994602]
[1736971486454,2.977,3436.8,3436.7,35.49994602]
[1736971489071,4.087,3436.8,3436.7,35.49994602]
[1736971490367,6.99668,3436.8,3436.7,35.49994602]
[1736971491069,4.087,3436.8,3436.7,35.49994602]
[1736971491451,5.197,3436.8,3436.7,35.49994602]
[1736971493978,6.307,3436.8,3436.7,35.49994602]
[1736971494153,9.21668,3436.8,3436.7,35.49994602]
[1736971495554,9.21668,3436.8,3436.7,35.24994602]
[1736971496454,10.32668,3436.8,3436.7,35.24994602]
[1736971499175,8.32,3436.8,3436.7,35.24994602]
[1736971499353,8.527,3436.8,3436.7,35.24994602]
[1736971499554,7.77,3436.8,3436.7,39.87588079]
[1736971500786,7.77,3436.8,3436.7,35.24994602]
[1736971501371,7.968,3436.8,3436.7,35.24994602]
[1736971501609,9.078,3436.8,3436.7,35.24994602]
[1736971501949,12.53768,3436.8,3436.7,35.24994602]
[1736971504397,13.64768,3436.8,3436.7,35.24994602]
[1736971505182,15.165788,3436.8,3436.7,35.24994602]
[1736971506167,13.02268,3436.8,3436.7,35.24994602]
[1736971506967,14.13268,3436.8,3436.7,35.24994602]
[1736971508392,13.93468,3436.8,3436.7,35.24994602]
[1736971508587,14.13268,3436.8,3436.7,35.24994602]
[1736971509287,15.24268,3436.8,3436.7,35.24994602]
[1736971510093,17.211236,3436.8,3436.7,35.24994602]
[1736971510261,20.211236,3436.8,3436.7,35.0]
[1736971510659,20.013236,3436.8,3436.7,35.0]
[1736971510869,15.24268,3436.8,3436.7,35.0]
[1736971511811,16.35268,3436.8,3436.7,35.0]
[1736971512798,17.95388,3436.8,3436.7,35.0]
[1736971514162,19.06388,3436.8,3436.7,35.0]
[1736971515298,15.4062,3436.8,3436.7,35.0]
[1736971515461,14.003,3436.8,3436.7,38.22623477]
[1736971515796,13.805,3436.8,3436.7,39.74043477]
[1736971516361,13.805,3436.8,3436.7,1.7642]
[1736971516596,15.663,3436.8,3436.7,1.7642]
[1736971516804,15.663,3436.8,3436.7,0.25]
[1736971517194,15.113,3436.8,3436.7,0.25]
[1736971517366,15.663,3436.8,3436.7,35.25]
[1736971517564,20.17388,3436.8,3436.7,35.0]
[1736971517772,22.191268,3436.8,3436.7,35.0]
[1736971518206,25.191268,3436.8,3436.7,35.0]
[1736971519230,3.46002,3436.4,3436.2,0.24984602]
[1736971519409,0.55,3436.3,3436.2,0.24984602]
[1736971519701,3.4601,3436.3,3436.2,0.24984602]
[1736971520103,3.4601,3436.3,3436.2,35.24984602]
[1736971520600,0.55,3436.3,3436.2,35.24984602]
[1736971520802,16.025,3436.8,3436.7,0.24984602]
[1736971520982,16.223,3436.8,3436.7,0.24984602]
[1736971521297,16.575,3436.8,3436.7,0.24984602]
[1736971521499,17.883,3436.8,3436.7,35.24984602]
[1736971522376,17.135,3436.8,3436.7,35.78714102]
[1736971522568,17.333,3436.8,3436.7,35.78714102]
[1736971522991,17.883,3436.8,3436.7,35.78714102]
[1736971523181,17.333,3436.8,3436.7,35.78714102]
[1736971523476,17.333,3436.8,3436.7,35.24984602]
[1736971523680,17.883,3436.8,3436.7,35.24984602]
[1736971523883,18.993,3436.8,3436.7,35.24984602]
[1736971525808,18.443,3436.8,3436.7,35.24984602]
[1736971526220,19.553,3436.8,3436.7,35.24984602]
[1736971526426,20.103,3436.8,3436.7,35.24984602]
[1736971527204,25.02298,3436.8,3436.7,35.24984602]
[1736971528002,26.63268,3436.8,3436.7,35.0]
[1736971528615,29.63268,3436.8,3436.7,35.0]
[1736971528820,30.74268,3436.8,3436.7,35.0]
[1736971530327,30.74268,3436.8,3435.1,3.0814463]
[1736971530328,4.51997,3436.1,3436.0,0.24984602]
[1736971530526,0.55,3435.9,3435.8,0.24984602]
[1736971530727,3.46044,3435.9,3435.8,0.24984602]
[1736971531320,4.57044,3435.9,3435.8,35.24984602]
[1736971532323,4.57044,3435.9,3435.8,35.31817507]
[1736971533029,4.57044,3435.9,3435.8,35.06832905]
[1736971533227,4.57044,3435.9,3435.8,35.31817507]
[1736971533530,4.76844,3435.9,3435.8,35.31817507]
[1736971533732,2.77,3435.9,3435.8,35.31817507]
[1736971533931,2.418,3435.9,3435.8,39.90320984]
[1736971534134,2.968,3435.9,3435.8,39.90320984]
[1736971534298,5.87844,3435.9,3435.8,35.31817507]
[1736971536731,2.968,3435.9,3435.8,35.31817507]
[1736971537033,3.33,3435.9,3435.8,35.31817507]
[1736971537203,3.528,3435.9,3435.8,35.31817507]
[1736971537825,3.528,3435.9,3435.8,36.93357507]
[1736971538230,4.078,3435.9,3435.8,36.93357507]
[1736971538544,3.88,3435.9,3435.8,36.93357507]
[1736971538743,4.078,3435.9,3435.8,38.93357507]
[1736971538911,3.88,3435.9,3435.8,38.93357507]
[1736971539112,4.078,3435.9,3435.8,38.93357507]
[1736971539312,5.188,3435.9,3435.8,38.93357507]
[1736971539945,4.44,3435.9,3435.8,41.90980984]
[1736971540151,4.44,3435.9,3435.8,44.82033984]
[1736971540450,4.44,3435.9,3435.8,47.82033984]
[1736971541357,4.44,3435.9,3435.8,44.90980984]
[1736971541945,5.55,3435.9,3435.8,44.90980984]
[1736971542377,6.1,3435.9,3435.8,41.93357507]
[1736971542923,6.1,3435.9,3435.8,38.93357507]
[1736971543118,5.55,3435.9,3435.8,45.09410507]
[1736971543372,17.55532,3436.8,3436.7,9.77500602]
[1736971543583,15.71051984,3436.8,3436.7,9.77500602]
[1736971543858,15.06780076,3436.8,3436.7,21.61054512]
[1736971544027,15.06780076,3436.8,3436.7,57.1998261]
[1736971544231,1.42930984,3436.8,3436.7,156.37529018]
[1736971544444,1.11,3436.8,3436.7,151.98540987]
[1736971544631,0.59011969,3436.8,3436.7,155.04040987]
[1736971544839,0.198,3438.4,3437.7,5.15876602]
[1736971545025,1.11,3438.9,3437.7,8.96555262]
[1736971545223,0.198,3438.6,3437.7,9.03076854]
[1736971545447,1.11,3438.9,3437.7,44.03076854]
[1736971545723,1.308,3438.7,3437.7,44.03076854]
[1736971545917,1.11,3438.7,3437.7,45.10796854]
[1736971546162,1.308,3438.7,3437.7,45.10796854]
[1736971546346,1.11,3438.7,3437.7,45.10796854]
[1736971546547,1.308,3438.7,3437.7,45.10796854]
[1736971546751,2.22,3437.8,3437.7,45.10796854]
[1736971547330,2.22,3437.8,3437.7,45.35796854]
[1736971549131,3.33,3437.8,3437.7,45.35796854]
[1736971549562,3.33,3437.8,3437.7,49.35796854]
[1736971549951,1e-05,3437.8,3437.7,50.03072941]
[1736971550353,1e-05,3437.8,3437.7,49.60796854]
[1736971550663,1e-05,3437.8,3437.7,49.35796854]
[1736971550863,1e-05,3437.8,3437.7,46.85812252]
[1736971551029,1e-05,3437.8,3437.7,49.35796854]
[1736971551446,1.11001,3437.8,3437.7,49.35796854]
[1736971551843,1e-05,3437.8,3437.7,49.35796854]
[1736971552955,1e-05,3437.8,3437.7,49.10796854]
[1736971554153,1.11001,3437.8,3437.7,49.10796854]
[1736971554354,1.11001,3437.8,3437.7,46.10796854]
[1736971554984,1.11001,3437.8,3437.7,49.10796854]
[1736971556282,1.11001,3437.8,3437.7,7.06718435]
[1736971556438,1.11001,3437.8,3437.7,7.12672377]
[1736971556640,2.22001,3437.8,3437.7,10.03564377]
[1736971557273,2.22001,3437.8,3437.7,45.03564377]
[1736971559385,3.33001,3437.8,3437.7,45.03564377]
[1736971559552,1e-05,3437.8,3437.7,45.28564377]
[1736971560390,1e-05,3437.8,3437.7,48.34064377]
[1736971560593,1e-05,3437.8,3437.7,59.18540464]
[1736971561562,1e-05,3437.8,3437.7,63.18540464]
[1736971563180,1.11,3438.7,3438.6,2.24984602]
[1736971563505,1.11,3438.7,3438.6,13.56935378]
[1736971563858,1.11,3438.7,3438.6,48.56935378]
[1736971564368,2.22,3438.7,3438.6,48.56935378]
[1736971564956,1.11,3438.9,3438.8,4.48523602]
[1736971565162,1.11,3438.9,3438.8,12.6252632]
[1736971565393,1.11,3438.9,3438.8,12.684102]
[1736971565690,1.5871,3440.3,3439.5,14.99463602]
[1736971566003,1.5871,3440.3,3439.5,17.99463602]
[1736971566172,1.5871,3440.3,3439.5,18.05316688]
[1736971566497,1.5871,3440.3,3439.5,53.05316688]
[1736971566657,11.1,3439.6,3439.5,53.05316688]
[1736971566852,11.1,3439.6,3439.5,49.06837688]
[1736971567165,12.21,3439.6,3439.5,46.06837688]
[1736971567372,13.7122,3439.6,3439.5,46.06837688]
[1736971568314,11.1,3439.6,3439.5,46.06837688]
[1736971569019,12.21,3439.6,3439.5,46.06837688]
[1736971569387,12.21,3439.6,3439.5,49.06837688]
[1736971570090,12.21,3439.6,3439.5,40.30837688]
[1736971570320,13.7122,3439.6,3439.5,40.30837688]
[1736971571515,14.8222,3439.6,3439.5,40.30837688]
[1736971572320,14.8222,3439.6,3439.5,37.30837688]
[1736971572321,15.3722,3439.6,3439.5,37.30837688]
[1736971572485,19.31652126,3439.6,3439.5,37.30837688]
[1736971573594,19.31652126,3439.6,3439.5,35.30837688]
[1736971573794,20.42652126,3439.6,3439.5,35.30837688]
[1736971576394,21.53652126,3439.6,3439.5,35.30837688]
[1736971576926,17.0422,3439.6,3439.5,37.30837688]
[1736971577135,15.54,3439.6,3439.5,40.30837688]
[1736971577495,15.54,3439.6,3439.5,140.30837688]
[1736971577697,15.54,3439.6,3439.5,40.30837688]
[1736971578827,16.65,3439.6,3439.5,40.30837688]
[1736971579230,16.65,3439.6,3439.5,43.21576688]
[1736971579422,16.65,3439.6,3439.5,44.29316688]
[1736971580597,16.65,3439.6,3439.5,48.29316688]
[1736971580836,7.07307964,3439.6,3439.5,49.16717775]
[1736971580999,7.07307964,3439.6,3439.5,59.33417775]
[1736971581000,6.34174744,3439.6,3439.5,59.33417775]
[1736971581332,0.18344744,3439.6,3439.5,59.33417775]
[1736971581529,0.18344744,3439.6,3439.5,159.33417775]
[1736971582348,1.11,3440.6,3440.5,6.23379602]
[1736971582680,1.11,3440.6,3440.5,9.28682008]
[1736971582833,1.11,3440.6,3440.5,9.53682008]
[1736971583032,1.11,3440.6,3440.5,44.53682008]
[1736971583232,1.11,3441.5,3441.4,2.24984602]
[1736971583447,1.11,3441.5,3441.4,9.28548037]
[1736971583646,2.22,3441.5,3441.4,18.04548037]
[1736971583843,2.22,3441.5,3441.4,44.28548037]
[1736971584449,2.22,3441.5,3441.4,44.78548037]
[1736971584655,2.22,3441.5,3441.4,48.78548037]
[1736971585261,2.22,3441.5,3441.4,148.78548037]
[1736971586173,3.33,3441.5,3441.4,148.78548037]
[1736971586587,3.33,3441.5,3441.4,149.35921039]
[1736971587151,3.33,3441.5,3441.4,149.73322064]
[1736971587689,0.625,3441.9,3441.8,2.24984602]
[1736971587886,0.625,3441.9,3441.8,13.23269602]
[1736971588067,0.625,3441.9,3441.8,13.28322915]
[1736971588264,0.625,3441.9,3441.8,48.28322915]
[1736971588560,1.735,3441.9,3441.8,48.28322915]
[1736971589897,1.735,3441.9,3441.8,48.53322915]
[1736971590751,1.11,3442.2,3441.8,58.69322915]
[1736971590976,6.66,3443.6,3442.6,9.23202602]
[1736971591368,6.66,3443.6,3442.6,44.28198359]
[1736971591967,6.66,3443.6,3442.6,44.53198359]
[1736971592180,6.66,3443.6,3442.9,0.49984602]
[1736971592379,6.66,3443.6,3442.9,16.5208017]
[1736971592565,6.66,3443.6,3442.9,26.69838065]
[1736971592784,6.66,3443.6,3442.9,61.69838065]
[1736971593304,6.66,3443.6,3443.5,8.15386602]
[1736971593685,6.66,3443.6,3443.5,8.20327828]
[1736971593857,6.66,3443.6,3443.5,43.20327828]
[1736971594058,6.66,3443.6,3443.5,47.20327828]
[1736971595663,7.77,3443.6,3443.5,44.29925828]
[1736971595860,8.547,3443.6,3443.5,37.29925828]
[1736971596198,13.54833,3443.6,3443.5,37.29925828]
[1736971596582,13.74533,3443.6,3443.5,37.29925828]
[1736971597626,13.74533,3443.6,3443.5,35.04941226]
[1736971597772,13.74533,3443.6,3443.5,37.04941226]
[1736971597963,14.85533,3443.6,3443.5,37.04941226]
[1736971600966,15.96533,3443.6,3443.5,37.04941226]
[1736971603396,17.07533,3443.6,3443.5,37.04941226]
[1736971603608,17.07533,3443.6,3443.5,35.04941226]
[1736971604096,4.4515,3443.4,3443.3,2.0]
[1736971604310,2.90435,3443.1,3443.0,0.24984602]
[1736971604613,5.00175,3443.1,3443.0,0.24984602]
[1736971605280,5.00175,3443.1,3443.0,35.24984602]
[1736971605687,5.00175,3443.1,3443.0,35.0]
[1736971605889,5.00226,3442.5,3442.4,0.24984602]